[Event "*** Titled Tuesday 3|2 Blitz"]
[Site "Chess.com"]
[Date "2017.06.06"]
[Round "2"]
[White "WinnieTPooh"]
[Black "Blitzking4444"]
[Result "1-0"]
[WhiteElo "1944"]
[BlackElo "2009"]
[TimeControl "180+2"]
[EndTime "14:10:40 PDT"]
[Termination "WinnieTPooh won by checkmate"]

1. d4 {[%clk 0:03:02]} 1... Nf6 {[%clk 0:03:00.5]} 2. c4 {[%clk 0:03:02.4]} 2...
e6 {[%clk 0:03:01.7]} 3. g3 {[%clk 0:03:03.2]} 3... d5 {[%clk 0:02:56.8]} 4. Bg2
{[%clk 0:03:04.3]} 4... Bb4+ {[%clk 0:02:57.7]} 5. Nd2 {[%clk 0:03:04.9]} 5...
O-O {[%clk 0:02:44.7]} 6. Nf3 {[%clk 0:03:04.3]} 6... dxc4 {[%clk 0:02:26.4]} 7.
Qc2 {[%clk 0:03:03.8]} 7... Nc6 {[%clk 0:02:11.2]} 8. Qxc4 {[%clk 0:03:02.6]}
8... Qd5 {[%clk 0:02:02]} 9. Qd3 {[%clk 0:02:53.3]} 9... e5 {[%clk 0:01:27.2]}
10. dxe5 {[%clk 0:02:45.9]} 10... Qxd3 {[%clk 0:01:19.4]} 11. exd3 {[%clk
0:02:47]} 11... Ng4 {[%clk 0:01:07]} 12. d4 {[%clk 0:02:46.8]} 12... Rd8 {[%clk
0:00:42.8]} 13. h3 {[%clk 0:02:41.8]} 13... Nh6 {[%clk 0:00:43]} 14. a3 {[%clk
0:02:42.1]} 14... Ba5 {[%clk 0:00:39.9]} 15. b4 {[%clk 0:02:38.8]} 15... Bb6
{[%clk 0:00:40.9]} 16. Nb3 {[%clk 0:02:35.3]} 16... Nf5 {[%clk 0:00:38.7]} 17.
Bb2 {[%clk 0:02:31.9]} 17... Nfxd4 {[%clk 0:00:32.2]} 18. Nfxd4 {[%clk
0:02:31.1]} 18... Nxd4 {[%clk 0:00:32.5]} 19. Nxd4 {[%clk 0:02:24.8]} 19... Rxd4
{[%clk 0:00:11.7]} 20. Bxd4 {[%clk 0:02:22]} 20... Bxd4 {[%clk 0:00:13.6]} 21.
O-O-O {[%clk 0:02:21.8]} 21... c5 {[%clk 0:00:14.1]} 22. bxc5 {[%clk 0:02:22.6]}
22... Bxc5 {[%clk 0:00:15]} 23. Rd8+ {[%clk 0:02:19.4]} 23... Bf8 {[%clk
0:00:16.2]} 24. Rhd1 {[%clk 0:02:05.8]} 24... g6 {[%clk 0:00:16.5]} 25. f4
{[%clk 0:02:05.4]} 25... Kg7 {[%clk 0:00:17.5]} 26. Kb2 {[%clk 0:02:05.3]} 26...
Bc5 {[%clk 0:00:13.1]} 27. Rc1 {[%clk 0:01:56.3]} 27... Bb6 {[%clk 0:00:09.2]}
28. Rdxc8 {[%clk 0:01:55.1]} 28... Bd4+ {[%clk 0:00:04.3]} 29. Kb3 {[%clk
0:01:54.8]} 29... Rxc8 {[%clk 0:00:03.5]} 30. Rxc8 {[%clk 0:01:56.7]} 30... b6
{[%clk 0:00:04.2]} 31. Rc7 {[%clk 0:01:56.6]} 31... a5 {[%clk 0:00:05.1]} 32.
Bd5 {[%clk 0:01:56.9]} 32... Kh6 {[%clk 0:00:04.8]} 33. Rxf7 {[%clk 0:01:57.3]}
33... g5 {[%clk 0:00:06.1]} 34. e6 {[%clk 0:01:55.5]} 34... gxf4 {[%clk
0:00:06.7]} 35. e7 {[%clk 0:01:56.2]} 35... a4+ {[%clk 0:00:06.1]} 36. Kc2
{[%clk 0:01:55.8]} 36... b5 {[%clk 0:00:07]} 37. e8=Q {[%clk 0:01:56.3]} 37...
b4 {[%clk 0:00:07.9]} 38. Qf8+ {[%clk 0:01:56.8]} 38... Bg7 {[%clk 0:00:08]} 39.
Qxg7+ {[%clk 0:01:57.3]} 39... Kh5 {[%clk 0:00:09.4]} 40. Rf5# {[%clk
0:01:55.3]} 1-0

[Event "*** Titled Tuesday 3|2 Blitz"]
[Site "Chess.com"]
[Date "2017.06.06"]
[Round "2"]
[White "Caminator2000"]
[Black "PelinGorki"]
[Result "0-1"]
[WhiteElo "2234"]
[BlackElo "2359"]
[TimeControl "180+2"]
[EndTime "14:10:47 PDT"]
[Termination "PelinGorki won by resignation"]

1. d4 {[%clk 0:03:02]} 1... Nf6 {[%clk 0:03:00.2]} 2. c4 {[%clk 0:03:02.6]} 2...
e5 {[%clk 0:03:01.3]} 3. dxe5 {[%clk 0:03:01.2]} 3... Ng4 {[%clk 0:03:02.8]} 4.
Nf3 {[%clk 0:03:00.5]} 4... Bc5 {[%clk 0:03:03.7]} 5. e3 {[%clk 0:02:59.1]} 5...
Nc6 {[%clk 0:03:04.2]} 6. a3 {[%clk 0:02:57]} 6... a5 {[%clk 0:03:03.6]} 7. Be2
{[%clk 0:02:51.5]} 7... O-O {[%clk 0:03:02.8]} 8. O-O {[%clk 0:02:48.9]} 8...
Re8 {[%clk 0:03:03.9]} 9. Nc3 {[%clk 0:02:46.8]} 9... Ncxe5 {[%clk 0:03:01.1]}
10. b3 {[%clk 0:02:40.8]} 10... Ra6 {[%clk 0:03:01]} 11. Ne4 {[%clk 0:02:33.7]}
11... Ba7 {[%clk 0:03:00.2]} 12. Nxe5 {[%clk 0:02:29.5]} 12... Nxe5 {[%clk
0:03:02.1]} 13. Bb2 {[%clk 0:02:27.9]} 13... Rh6 {[%clk 0:03:00]} 14. h3 {[%clk
0:02:02.3]} 14... d6 {[%clk 0:02:58.8]} 15. c5 {[%clk 0:02:01.4]} 15... Qh4
{[%clk 0:02:55.4]} 16. f4 {[%clk 0:01:34.6]} 16... Nc6 {[%clk 0:02:46.9]} 17.
Bf3 {[%clk 0:01:27]} 17... Bxh3 {[%clk 0:02:32.6]} 18. gxh3 {[%clk 0:01:18.1]}
18... Rg6+ {[%clk 0:02:33.4]} 19. Ng5 {[%clk 0:01:09.3]} 19... h6 {[%clk
0:02:33.7]} 20. Qe1 {[%clk 0:01:03.2]} 20... Qxe1 {[%clk 0:02:30.8]} 21. Raxe1
{[%clk 0:00:58.9]} 21... hxg5 {[%clk 0:02:31.8]} 22. Bh5 {[%clk 0:00:52]} 22...
Rge6 {[%clk 0:02:17.6]} 23. fxg5 {[%clk 0:00:50.9]} 23... g6 {[%clk 0:02:18.5]}
24. Bf3 {[%clk 0:00:49.1]} 24... Rxe3 {[%clk 0:02:19]} 25. Rxe3 {[%clk 0:00:46]}
25... Rxe3 {[%clk 0:02:20.9]} 26. Bd5 {[%clk 0:00:47.5]} 26... Nd8 {[%clk
0:02:18.2]} 27. Rf4 {[%clk 0:00:33.4]} 27... Bxc5 {[%clk 0:02:12.2]} 28. Kf1
{[%clk 0:00:27.1]} 28... Rxh3 {[%clk 0:02:08.5]} 29. Re4 {[%clk 0:00:28]} 29...
Kf8 {[%clk 0:01:52.7]} 30. Bf6 {[%clk 0:00:22.3]} 30... Ne6 {[%clk 0:01:48.9]}
31. b4 {[%clk 0:00:20.4]} 31... axb4 {[%clk 0:01:49.1]} 32. axb4 {[%clk
0:00:22.1]} 32... Bb6 {[%clk 0:01:47.4]} 33. Bxe6 {[%clk 0:00:22.8]} 33... fxe6
{[%clk 0:01:48.2]} 34. Rxe6 {[%clk 0:00:24.7]} 34... Re3 {[%clk 0:01:45]} 35.
Rxe3 {[%clk 0:00:20.8]} 35... Bxe3 {[%clk 0:01:46.9]} 36. Ke2 {[%clk 0:00:21.6]}
36... Bb6 {[%clk 0:01:47.9]} 37. Kd3 {[%clk 0:00:22.5]} 37... Kf7 {[%clk
0:01:49.4]} 38. Ke4 {[%clk 0:00:23.6]} 38... Ke6 {[%clk 0:01:50.8]} 0-1

[Event "*** Titled Tuesday 3|2 Blitz"]
[Site "Chess.com"]
[Date "2017.06.06"]
[Round "2"]
[White "viggi38"]
[Black "Rogue_King"]
[Result "1-0"]
[WhiteElo "2149"]
[BlackElo "2123"]
[TimeControl "180+2"]
[EndTime "14:11:25 PDT"]
[Termination "viggi38 won on time"]

1. d4 {[%clk 0:03:02]} 1... Nf6 {[%clk 0:03:00.3]} 2. c4 {[%clk 0:03:02.3]} 2...
g6 {[%clk 0:03:01.8]} 3. Nc3 {[%clk 0:03:02.1]} 3... Bg7 {[%clk 0:03:03.2]} 4.
e4 {[%clk 0:03:02]} 4... O-O {[%clk 0:03:05.2]} 5. Be2 {[%clk 0:03:01.4]} 5...
d6 {[%clk 0:03:05.9]} 6. Be3 {[%clk 0:03:01.1]} 6... e5 {[%clk 0:02:59.8]} 7. d5
{[%clk 0:03:01.6]} 7... a5 {[%clk 0:02:58.9]} 8. g4 {[%clk 0:03:01.9]} 8... Na6
{[%clk 0:02:53.1]} 9. g5 {[%clk 0:03:02]} 9... Nd7 {[%clk 0:02:53.6]} 10. h4
{[%clk 0:03:01.7]} 10... f5 {[%clk 0:02:49.7]} 11. gxf6 {[%clk 0:03:01.3]} 11...
Nxf6 {[%clk 0:02:50.1]} 12. h5 {[%clk 0:03:02.2]} 12... Nc5 {[%clk 0:02:49.9]}
13. hxg6 {[%clk 0:03:02.2]} 13... Ncxe4 {[%clk 0:02:46.5]} 14. gxh7+ {[%clk
0:03:01.4]} 14... Kh8 {[%clk 0:02:47.2]} 15. Nxe4 {[%clk 0:02:58.1]} 15... Nxe4
{[%clk 0:02:49.1]} 16. Nf3 {[%clk 0:02:59]} 16... Bg4 {[%clk 0:02:24.5]} 17. Nh4
{[%clk 0:02:58.9]} 17... Qf6 {[%clk 0:02:10.1]} 18. Bxg4 {[%clk 0:02:20]} 18...
Nxf2 {[%clk 0:02:09.4]} 19. Qc2 {[%clk 0:02:15.3]} 19... Nxh1 {[%clk 0:01:46.1]}
20. Ng6+ {[%clk 0:02:14.5]} 20... Kxh7 {[%clk 0:01:47.5]} 21. Nxf8+ {[%clk
0:02:10.7]} 21... Kg8 {[%clk 0:01:47.3]} 22. Ng6 {[%clk 0:02:00.6]} 22... Kf7
{[%clk 0:01:30.2]} 23. Be6+ {[%clk 0:01:55.8]} 23... Ke8 {[%clk 0:01:24.5]} 24.
O-O-O {[%clk 0:01:53.1]} 24... Ng3 {[%clk 0:01:25.5]} 25. Rg1 {[%clk 0:01:41]}
25... Qf3 {[%clk 0:01:03.4]} 26. Re1 {[%clk 0:01:29.1]} 26... e4 {[%clk
0:00:07.3]} 27. Qf2 {[%clk 0:01:22.3]} 27... Qxf2 {[%clk 0:00:03.1]} 28. Bxf2
{[%clk 0:01:21.6]} 28... Nh5 {[%clk 0:00:04.3]} 29. Rxe4 {[%clk 0:01:18.2]}
29... Nf6 {[%clk 0:00:05.6]} 30. Re2 {[%clk 0:01:14.9]} 30... a4 {[%clk
0:00:06.4]} 31. Bd4 {[%clk 0:01:06.6]} 31... Bh6+ {[%clk 0:00:05.5]} 32. Kc2
{[%clk 0:01:05.9]} 32... Nd7 {[%clk 0:00:03.2]} 33. Rh2 {[%clk 0:00:53.6]} 1-0

[Event "*** Titled Tuesday 3|2 Blitz"]
[Site "Chess.com"]
[Date "2017.06.06"]
[Round "2"]
[White "LittlePeasant"]
[Black "GianmarcoVaR"]
[Result "1-0"]
[WhiteElo "2648"]
[BlackElo "2439"]
[TimeControl "180+2"]
[EndTime "14:11:43 PDT"]
[Termination "LittlePeasant won on time"]

1. e4 {[%clk 0:03:01.9]} 1... c6 {[%clk 0:02:58.9]} 2. c4 {[%clk 0:03:01.6]}
2... d5 {[%clk 0:02:58.6]} 3. cxd5 {[%clk 0:03:03.5]} 3... cxd5 {[%clk
0:03:00.2]} 4. exd5 {[%clk 0:03:05.4]} 4... Nf6 {[%clk 0:03:01.8]} 5. Nc3 {[%clk
0:03:07.3]} 5... Nxd5 {[%clk 0:03:02]} 6. Nf3 {[%clk 0:03:08.2]} 6... Nc6 {[%clk
0:03:01.1]} 7. Bb5 {[%clk 0:03:08.8]} 7... e6 {[%clk 0:02:47]} 8. O-O {[%clk
0:03:09]} 8... Be7 {[%clk 0:02:48.1]} 9. d4 {[%clk 0:03:09.9]} 9... O-O {[%clk
0:02:48.9]} 10. Re1 {[%clk 0:03:11.2]} 10... Bd7 {[%clk 0:02:44.5]} 11. Bd3
{[%clk 0:03:04.4]} 11... Qb6 {[%clk 0:02:27.1]} 12. a3 {[%clk 0:02:57.4]} 12...
Rfd8 {[%clk 0:02:16.2]} 13. Nxd5 {[%clk 0:02:43.3]} 13... exd5 {[%clk 0:02:16]}
14. Ne5 {[%clk 0:02:44.3]} 14... Nxe5 {[%clk 0:02:00.6]} 15. dxe5 {[%clk
0:02:42.9]} 15... Be6 {[%clk 0:01:44]} 16. b4 {[%clk 0:02:35.7]} 16... Rac8
{[%clk 0:01:43]} 17. Bd2 {[%clk 0:02:27.3]} 17... g6 {[%clk 0:01:28.1]} 18. Qf3
{[%clk 0:02:22.7]} 18... Qd4 {[%clk 0:01:15.9]} 19. Rab1 {[%clk 0:01:41.4]}
19... Rc7 {[%clk 0:01:00.6]} 20. h3 {[%clk 0:01:37.4]} 20... Rdc8 {[%clk
0:01:00.5]} 21. Red1 {[%clk 0:01:35.6]} 21... Qxe5 {[%clk 0:00:47.7]} 22. Bf4
{[%clk 0:01:36.1]} 22... Qf6 {[%clk 0:00:49]} 23. Bxc7 {[%clk 0:01:34.4]} 23...
Qxf3 {[%clk 0:00:50]} 24. gxf3 {[%clk 0:01:35.2]} 24... Rxc7 {[%clk 0:00:51.6]}
25. Rbc1 {[%clk 0:01:32]} 25... Rxc1 {[%clk 0:00:47.8]} 26. Rxc1 {[%clk
0:01:33.9]} 26... Bd6 {[%clk 0:00:48.6]} 27. Kg2 {[%clk 0:01:34.1]} 27... Kf8
{[%clk 0:00:47.7]} 28. Bb1 {[%clk 0:01:31.5]} 28... d4 {[%clk 0:00:42.7]} 29.
Be4 {[%clk 0:01:29.9]} 29... b6 {[%clk 0:00:42]} 30. h4 {[%clk 0:01:17.9]} 30...
h5 {[%clk 0:00:37.8]} 31. Kf1 {[%clk 0:01:18.8]} 31... Ke7 {[%clk 0:00:32.3]}
32. Ke2 {[%clk 0:01:19.6]} 32... Bf4 {[%clk 0:00:32.9]} 33. Rd1 {[%clk
0:01:12.5]} 33... Bc4+ {[%clk 0:00:30.5]} 34. Bd3 {[%clk 0:01:13.6]} 34... Bb3
{[%clk 0:00:31.3]} 35. Rb1 {[%clk 0:01:12.7]} 35... Ba2 {[%clk 0:00:31.3]} 36.
Rb2 {[%clk 0:01:13.7]} 36... Bd5 {[%clk 0:00:29.3]} 37. Rc2 {[%clk 0:01:13.2]}
37... Be6 {[%clk 0:00:23.1]} 38. Be4 {[%clk 0:01:14.4]} 38... Kd7 {[%clk
0:00:22.2]} 39. Kd3 {[%clk 0:01:12.6]} 39... Be5 {[%clk 0:00:18.7]} 40. Rc1
{[%clk 0:01:13.5]} 40... f5 {[%clk 0:00:18.4]} 41. Bb7 {[%clk 0:01:12.6]} 41...
Kd8 {[%clk 0:00:14.4]} 42. Re1 {[%clk 0:01:10.3]} 1-0

[Event "*** Titled Tuesday 3|2 Blitz"]
[Site "Chess.com"]
[Date "2017.06.06"]
[Round "2"]
[White "Aygehovit1992"]
[Black "Federer999"]
[Result "0-1"]
[WhiteElo "2489"]
[BlackElo "2658"]
[TimeControl "180+2"]
[EndTime "14:11:58 PDT"]
[Termination "Federer999 won by resignation"]

1. d4 {[%clk 0:03:02]} 1... Nf6 {[%clk 0:02:58.7]} 2. Nc3 {[%clk 0:03:02.9]}
2... d5 {[%clk 0:02:54.1]} 3. Bg5 {[%clk 0:03:03.6]} 3... e6 {[%clk 0:02:49.3]}
4. e3 {[%clk 0:03:01.8]} 4... Be7 {[%clk 0:02:49.2]} 5. Nf3 {[%clk 0:03:01.1]}
5... O-O {[%clk 0:02:39.6]} 6. Bd3 {[%clk 0:02:59.6]} 6... c5 {[%clk 0:02:36]}
7. dxc5 {[%clk 0:03:00]} 7... Nbd7 {[%clk 0:02:35]} 8. b4 {[%clk 0:02:58.6]}
8... b6 {[%clk 0:02:27.7]} 9. Nd4 {[%clk 0:02:41.3]} 9... bxc5 {[%clk
0:02:27.4]} 10. Nc6 {[%clk 0:02:41.9]} 10... Qe8 {[%clk 0:02:29]} 11. Nxe7+
{[%clk 0:02:42.8]} 11... Qxe7 {[%clk 0:02:27.9]} 12. bxc5 {[%clk 0:02:40.9]}
12... Qxc5 {[%clk 0:02:26]} 13. Ne2 {[%clk 0:02:40.4]} 13... h6 {[%clk
0:02:15.8]} 14. Bxf6 {[%clk 0:02:34.9]} 14... Nxf6 {[%clk 0:02:15.4]} 15. O-O
{[%clk 0:02:36.8]} 15... e5 {[%clk 0:02:10.5]} 16. c3 {[%clk 0:02:27.1]} 16...
Bg4 {[%clk 0:02:08.8]} 17. Rc1 {[%clk 0:02:24.2]} 17... Rab8 {[%clk 0:02:04.6]}
18. h3 {[%clk 0:02:23.2]} 18... Be6 {[%clk 0:01:59.8]} 19. Qd2 {[%clk
0:02:14.8]} 19... Ne4 {[%clk 0:01:50.3]} 20. Bxe4 {[%clk 0:02:14.2]} 20... dxe4
{[%clk 0:01:50.9]} 21. c4 {[%clk 0:02:01.3]} 21... Rfd8 {[%clk 0:01:47.8]} 22.
Qc2 {[%clk 0:02:02]} 22... f5 {[%clk 0:01:48]} 23. Ng3 {[%clk 0:01:59.9]} 23...
Rb4 {[%clk 0:01:43]} 24. Rfd1 {[%clk 0:01:59]} 24... Rc8 {[%clk 0:01:37.6]} 25.
Qe2 {[%clk 0:01:53]} 25... Rxc4 {[%clk 0:01:25.6]} 26. Rxc4 {[%clk 0:01:53.1]}
26... Qxc4 {[%clk 0:01:26.9]} 27. Qh5 {[%clk 0:01:53.9]} 27... Rf8 {[%clk
0:01:19.7]} 28. Rd6 {[%clk 0:01:41.6]} 28... Kh7 {[%clk 0:01:13.8]} 29. Qh4
{[%clk 0:01:19.3]} 29... Rf7 {[%clk 0:01:08.1]} 30. Nh5 {[%clk 0:01:04.8]} 30...
g5 {[%clk 0:00:40.9]} 31. Qg3 {[%clk 0:00:59.8]} 31... f4 {[%clk 0:00:34.2]} 32.
exf4 {[%clk 0:01:01.7]} 32... Qc1+ {[%clk 0:00:23.7]} 33. Kh2 {[%clk 0:01:01.9]}
33... exf4 {[%clk 0:00:24.2]} 34. Nxf4 {[%clk 0:00:44.8]} 34... gxf4 {[%clk
0:00:24.9]} 35. Qh4 {[%clk 0:00:46.3]} 35... Qc4 {[%clk 0:00:24.9]} 36. Qd8
{[%clk 0:00:44.5]} 36... f3 {[%clk 0:00:23.3]} 37. Qe8 {[%clk 0:00:39.2]} 37...
Qf1 {[%clk 0:00:19.6]} 0-1

[Event "*** Titled Tuesday 3|2 Blitz"]
[Site "Chess.com"]
[Date "2017.06.06"]
[Round "2"]
[White "goingin33"]
[Black "northridgehawk"]
[Result "1-0"]
[WhiteElo "2185"]
[BlackElo "2090"]
[TimeControl "180+2"]
[EndTime "14:12:01 PDT"]
[Termination "goingin33 won by resignation"]

1. d4 {[%clk 0:03:02]} 1... Nf6 {[%clk 0:03:00.3]} 2. Bg5 {[%clk 0:03:02.3]}
2... Ne4 {[%clk 0:02:57.4]} 3. Bf4 {[%clk 0:03:02.9]} 3... c5 {[%clk 0:02:58.6]}
4. f3 {[%clk 0:03:02.1]} 4... Nf6 {[%clk 0:02:59.2]} 5. d5 {[%clk 0:03:01.5]}
5... d6 {[%clk 0:02:56.8]} 6. e4 {[%clk 0:02:59.5]} 6... g6 {[%clk 0:02:54.4]}
7. Nc3 {[%clk 0:02:45.2]} 7... Bg7 {[%clk 0:02:41.2]} 8. Qd2 {[%clk 0:02:46.1]}
8... O-O {[%clk 0:02:40.7]} 9. Bh6 {[%clk 0:02:45.9]} 9... Nbd7 {[%clk
0:02:37.5]} 10. h4 {[%clk 0:02:29.6]} 10... b5 {[%clk 0:02:38.1]} 11. Bxb5
{[%clk 0:02:18.7]} 11... Rb8 {[%clk 0:02:38.1]} 12. Bxd7 {[%clk 0:02:08.4]}
12... Bxd7 {[%clk 0:02:37.6]} 13. Rb1 {[%clk 0:01:59.8]} 13... Qa5 {[%clk
0:02:28.3]} 14. Bxg7 {[%clk 0:01:38.9]} 14... Kxg7 {[%clk 0:02:28.7]} 15. h5
{[%clk 0:01:40.3]} 15... gxh5 {[%clk 0:02:29.1]} 16. Nge2 {[%clk 0:01:33.9]}
16... Rg8 {[%clk 0:02:25.2]} 17. Nf4 {[%clk 0:01:21.7]} 17... Kh8 {[%clk
0:02:24.6]} 18. Nxh5 {[%clk 0:01:18.7]} 18... Nxh5 {[%clk 0:02:23.8]} 19. Rxh5
{[%clk 0:01:20.6]} 19... Rg7 {[%clk 0:02:25.4]} 20. Kf2 {[%clk 0:01:12.4]} 20...
Rbg8 {[%clk 0:02:22.9]} 21. Rh2 {[%clk 0:01:08.6]} 21... f5 {[%clk 0:02:13.3]}
22. Rbh1 {[%clk 0:01:06.8]} 22... Qb4 {[%clk 0:02:09]} 23. Qh6 {[%clk
0:00:58.5]} 23... Qd4+ {[%clk 0:02:09.4]} 24. Ke1 {[%clk 0:00:59.5]} 24... Rf8
{[%clk 0:01:56.1]} 25. Qd2 {[%clk 0:00:55.4]} 25... Qe5 {[%clk 0:01:52.7]} 26.
f4 {[%clk 0:00:41.7]} 26... Qd4 {[%clk 0:01:53.6]} 27. Qxd4 {[%clk 0:00:24.6]}
27... cxd4 {[%clk 0:01:55.5]} 28. Ne2 {[%clk 0:00:26]} 28... fxe4 {[%clk
0:01:53.8]} 29. Nxd4 {[%clk 0:00:27.6]} 29... Rxf4 {[%clk 0:01:54.4]} 30. Ke2
{[%clk 0:00:29]} 30... Rfg4 {[%clk 0:01:46.9]} 31. Ke3 {[%clk 0:00:28.4]} 31...
Rg3+ {[%clk 0:01:43]} 32. Kf2 {[%clk 0:00:25.2]} 32... e3+ {[%clk 0:01:42.4]}
33. Kf1 {[%clk 0:00:26.6]} 33... R3g4 {[%clk 0:01:40.4]} 34. c3 {[%clk
0:00:27.6]} 34... Rf4+ {[%clk 0:01:35.5]} 35. Ke2 {[%clk 0:00:28.7]} 35... Rf2+
{[%clk 0:01:31.1]} 36. Kxe3 {[%clk 0:00:29.9]} 36... Rxb2 {[%clk 0:01:31.9]} 37.
g4 {[%clk 0:00:29.4]} 37... Bxg4 {[%clk 0:01:31.4]} 38. Rxb2 {[%clk 0:00:29.6]}
38... h5 {[%clk 0:01:29.9]} 39. Rb8+ {[%clk 0:00:30.3]} 39... Kh7 {[%clk
0:01:30.7]} 40. Rf1 {[%clk 0:00:30.4]} 40... h4 {[%clk 0:01:30.7]} 41. Rbf8
{[%clk 0:00:28.8]} 41... Bh5 {[%clk 0:01:31.1]} 42. Ne6 {[%clk 0:00:25.9]} 42...
Rg3+ {[%clk 0:01:31.3]} 43. Kd4 {[%clk 0:00:26.2]} 43... Bg6 {[%clk 0:01:32.2]}
44. R1f4 {[%clk 0:00:23.3]} 44... Rd3+ {[%clk 0:01:32.1]} 45. Kc4 {[%clk
0:00:24.5]} 45... Rh3 {[%clk 0:01:28.8]} 46. Ng5+ {[%clk 0:00:23.5]} 46... Kh6
{[%clk 0:01:29.4]} 47. Nxh3 {[%clk 0:00:24.9]} 47... Bh5 {[%clk 0:01:27.7]} 48.
Rh8+ {[%clk 0:00:25.2]} 48... Kg7 {[%clk 0:01:28.1]} 1-0

[Event "*** Titled Tuesday 3|2 Blitz"]
[Site "Chess.com"]
[Date "2017.06.06"]
[Round "2"]
[White "Indianlad"]
[Black "Storne89"]
[Result "0-1"]
[WhiteElo "2580"]
[BlackElo "2520"]
[TimeControl "180+2"]
[EndTime "14:12:02 PDT"]
[Termination "Storne89 won by resignation"]

1. d4 {[%clk 0:03:02]} 1... Nf6 {[%clk 0:02:59.9]} 2. Bg5 {[%clk 0:03:03.1]}
2... Ne4 {[%clk 0:02:59.3]} 3. h4 {[%clk 0:03:03.5]} 3... d5 {[%clk 0:02:35.7]}
4. e3 {[%clk 0:03:02.4]} 4... c6 {[%clk 0:02:26.4]} 5. Nd2 {[%clk 0:03:02.3]}
5... Bf5 {[%clk 0:02:25.9]} 6. Nxe4 {[%clk 0:03:02.5]} 6... Bxe4 {[%clk
0:02:26.3]} 7. f3 {[%clk 0:03:03.2]} 7... Bf5 {[%clk 0:02:27.3]} 8. g4 {[%clk
0:03:03.7]} 8... Bc8 {[%clk 0:02:25.9]} 9. c4 {[%clk 0:03:04.7]} 9... Qa5+
{[%clk 0:02:21]} 10. Qd2 {[%clk 0:03:04.7]} 10... Qxd2+ {[%clk 0:02:21.7]} 11.
Kxd2 {[%clk 0:03:06.6]} 11... e6 {[%clk 0:02:23.3]} 12. Bf4 {[%clk 0:03:03.3]}
12... Nd7 {[%clk 0:02:22.6]} 13. c5 {[%clk 0:02:59.4]} 13... f6 {[%clk
0:02:23.1]} 14. Bg3 {[%clk 0:02:57.8]} 14... Be7 {[%clk 0:02:15.7]} 15. b4
{[%clk 0:02:56.3]} 15... b6 {[%clk 0:02:04.4]} 16. h5 {[%clk 0:02:44.3]} 16...
a5 {[%clk 0:02:02.3]} 17. b5 {[%clk 0:02:45.1]} 17... bxc5 {[%clk 0:02:03.2]}
18. bxc6 {[%clk 0:02:45.5]} 18... Nb6 {[%clk 0:02:04.2]} 19. Rb1 {[%clk
0:02:42.3]} 19... Nc4+ {[%clk 0:01:53.4]} 20. Bxc4 {[%clk 0:02:42.3]} 20... dxc4
{[%clk 0:01:55.3]} 21. Ne2 {[%clk 0:02:42.4]} 21... cxd4 {[%clk 0:01:54.8]} 22.
Nxd4 {[%clk 0:02:35.3]} 22... Bb4+ {[%clk 0:01:55.1]} 23. Ke2 {[%clk 0:02:32.4]}
23... e5 {[%clk 0:01:56.1]} 24. Nb5 {[%clk 0:02:33.2]} 24... Ke7 {[%clk
0:01:55.2]} 25. a3 {[%clk 0:02:13.5]} 25... Ba6 {[%clk 0:01:54]} 26. Nc7 {[%clk
0:02:12.5]} 26... Bxa3 {[%clk 0:01:50.3]} 27. Rhd1 {[%clk 0:01:52]} 27... c3+
{[%clk 0:01:43.8]} 28. Nxa6 {[%clk 0:01:48.4]} 28... Rxa6 {[%clk 0:01:33]} 29.
Rb7+ {[%clk 0:01:37.3]} 29... Ke6 {[%clk 0:01:33.3]} 30. f4 {[%clk 0:01:37.7]}
30... g6 {[%clk 0:01:24.7]} 31. Rxh7 {[%clk 0:01:07.2]} 31... Rxh7 {[%clk
0:01:14.8]} 32. hxg6 {[%clk 0:01:07.5]} 32... Rc7 {[%clk 0:00:58.4]} 33. f5+
{[%clk 0:00:48.8]} 33... Ke7 {[%clk 0:00:58.1]} 34. Bxe5 {[%clk 0:00:16.8]}
34... fxe5 {[%clk 0:00:51.7]} 35. g5 {[%clk 0:00:16.1]} 35... c2 {[%clk
0:00:48.9]} 36. f6+ {[%clk 0:00:16]} 36... Ke6 {[%clk 0:00:47.6]} 37. g7 {[%clk
0:00:15.5]} 37... cxd1=Q+ {[%clk 0:00:47.9]} 38. Kxd1 {[%clk 0:00:17.4]} 0-1

[Event "*** Titled Tuesday 3|2 Blitz"]
[Site "Chess.com"]
[Date "2017.06.06"]
[Round "2"]
[White "Aikiigm"]
[Black "anon102030"]
[Result "0-1"]
[WhiteElo "2426"]
[BlackElo "2590"]
[TimeControl "180+2"]
[EndTime "14:12:09 PDT"]
[Termination "anon102030 won by resignation"]

1. e4 {[%clk 0:02:41.3]} 1... e5 {[%clk 0:03:01]} 2. Nf3 {[%clk 0:02:41.2]} 2...
Nc6 {[%clk 0:03:02.3]} 3. Bc4 {[%clk 0:02:41.8]} 3... Bc5 {[%clk 0:03:02.6]} 4.
d3 {[%clk 0:02:42.8]} 4... Nf6 {[%clk 0:03:02.1]} 5. Bg5 {[%clk 0:02:43.6]} 5...
h6 {[%clk 0:03:02.1]} 6. Bh4 {[%clk 0:02:44.7]} 6... g5 {[%clk 0:02:59.9]} 7.
Bg3 {[%clk 0:02:45.5]} 7... d6 {[%clk 0:03:00.5]} 8. Nc3 {[%clk 0:02:39.4]} 8...
Bg4 {[%clk 0:02:56.8]} 9. h3 {[%clk 0:02:38.6]} 9... Bh5 {[%clk 0:02:53.3]} 10.
Bb5 {[%clk 0:02:39.6]} 10... a6 {[%clk 0:02:49.9]} 11. Bxc6+ {[%clk 0:02:40.4]}
11... bxc6 {[%clk 0:02:51.8]} 12. h4 {[%clk 0:02:34.9]} 12... g4 {[%clk
0:02:43.6]} 13. Nd2 {[%clk 0:02:35.8]} 13... Bg6 {[%clk 0:02:37.9]} 14. Nb3
{[%clk 0:02:36.5]} 14... Bb6 {[%clk 0:02:36.3]} 15. h5 {[%clk 0:02:22.3]} 15...
Nxh5 {[%clk 0:02:34.7]} 16. Qxg4 {[%clk 0:02:17.9]} 16... Qg5 {[%clk 0:02:29]}
17. Qxg5 {[%clk 0:02:05.5]} 17... hxg5 {[%clk 0:02:30.9]} 18. f3 {[%clk
0:01:19.7]} 18... Ke7 {[%clk 0:02:20.2]} 19. Bf2 {[%clk 0:01:18.2]} 19... Nf4
{[%clk 0:02:14.6]} 20. Rxh8 {[%clk 0:01:17.5]} 20... Rxh8 {[%clk 0:02:16.5]} 21.
Bxb6 {[%clk 0:01:18.1]} 21... cxb6 {[%clk 0:02:04.9]} 22. Kf2 {[%clk 0:01:00.7]}
22... Rh2 {[%clk 0:02:00]} 23. Rg1 {[%clk 0:01:00.8]} 23... d5 {[%clk 0:01:47]}
24. Nc1 {[%clk 0:00:47.2]} 24... f5 {[%clk 0:01:41]} 25. Kg3 {[%clk 0:00:38.1]}
25... Rh8 {[%clk 0:01:34.7]} 26. exf5 {[%clk 0:00:37.7]} 26... Bxf5 {[%clk
0:01:34.8]} 27. Re1 {[%clk 0:00:38.7]} 27... Kf6 {[%clk 0:01:35.6]} 28. Na4
{[%clk 0:00:37]} 28... b5 {[%clk 0:01:21.9]} 29. Nc5 {[%clk 0:00:37.5]} 29... a5
{[%clk 0:01:20.4]} 30. c3 {[%clk 0:00:38.6]} 30... Rh4 {[%clk 0:00:51.4]} 31.
Rg1 {[%clk 0:00:19.7]} 31... a4 {[%clk 0:00:48.7]} 32. Kf2 {[%clk 0:00:19.7]}
32... Rh2 {[%clk 0:00:49.2]} 33. Kg3 {[%clk 0:00:20.8]} 33... Rh7 {[%clk
0:00:49.1]} 34. Kf2 {[%clk 0:00:21.5]} 34... g4 {[%clk 0:00:48.4]} 35. fxg4
{[%clk 0:00:21.7]} 35... Bxg4 {[%clk 0:00:50.3]} 36. d4 {[%clk 0:00:22.6]} 36...
e4 {[%clk 0:00:50.4]} 37. Ke3 {[%clk 0:00:23]} 37... Kg5 {[%clk 0:00:50.8]} 38.
g3 {[%clk 0:00:19.8]} 38... Rh3 {[%clk 0:00:38.2]} 39. b3 {[%clk 0:00:18.9]}
39... axb3 {[%clk 0:00:36.6]} 40. axb3 {[%clk 0:00:20.8]} 40... Nh5 {[%clk
0:00:37.5]} 41. Kf2 {[%clk 0:00:21.7]} 41... Bf3 {[%clk 0:00:37.5]} 42. Ne2
{[%clk 0:00:21.8]} 42... Rh2+ {[%clk 0:00:38.4]} 0-1